[Event "Lliga Catalana 2024"]
[Site "Catalonia"]
[Date "2024.03.09"]
[Round "1.8"]
[White "Gomez Anadon, Daniel"]
[Black "Moreno Martin-Viveros, Alvaro"]
[Result "1/2-1/2"]
[ECO "C15"]
[WhiteElo "2129"]
[BlackElo "2177"]
[Annotator "RC"]
[PlyCount "114"]
[EventDate "2024.01.18"]
[EventType "team-tourn"]
[EventCountry "ESP"]
[SourceTitle "playchess.com"]
[Source "ChessBase"]
[SourceQuality "1"]
[TimeControl "5400+30"]

1. e4 {[%emt 0:00:07]} e6 {[%emt 0:00:16]} 2. d4 {[%emt 0:01:04]} d5 {[%emt 0:00:19]} 3. Nc3 {[%emt 0:00:45]} Bb4 {[%emt 0:00:56]} 4. Nge2 {[%emt 0:00:43]} dxe4 {[%emt 0:00:17]} 5. a3 {[%emt 0:00:13]} Bxc3+ {[%emt 0:00:29]} 6. Nxc3 {[%emt 0:00:06]} Nc6 {[%emt 0:00:24]} 7. d5 {[%emt 0:00:22]} exd5 {[%emt 0:01:36]} 8. Qxd5 {[%emt 0:00:10]} Be6 {[%emt 0:00:38]} 9. Qxe4 {[%emt 0:00:37]} Nf6 {[%emt 0:01:01]} 10. Qa4 {[%emt 0:04:42]} O-O {[%emt 0:08:18]} 11. Bd3 {[%emt 0:08:45]} Ne5 {[%emt 0:14:57]} 12. Be2 {[%emt 0:02:01]} Nd5 {[%emt 0:02:14]} 13. Nxd5 {[%emt 0:05:36]} Bxd5 {[%emt 0:00:55]} 14. O-O {[%emt 0:01:11]} Qf6 {[%emt 1:05:10]} 15. Qf4 {[%emt 0:17:26]} Qg6 {[%emt 0:00:00]} 16. Qg3 {[%emt 0:03:36]} Rfe8 {[%emt 0:00:00]} 17. Qxg6 {[%emt 0:04:05]} Nxg6 {[%emt 0:00:00]} 18. Re1 {[%emt 0:08:16]} Nh4 {[%emt 0:00:00]} 19. f3 {[%emt 0:01:42]} Bc4 {[%emt 0:00:00]} 20. Kf2 {[%emt 0:06:01]} Nxg2 {[%emt 0:00:00]} 21. Kxg2 {[%emt 0:13:26]} Bxe2 {[%emt 0:00:00]} 22. Bf4 {[%emt 0:01:48]} c5 {[%emt 0:00:00]} 23. Kf2 {[%emt 0:01:20]} Bb5 {[%emt 0:00:00]} 24. Rxe8+ {[%emt 0:03:31]} Rxe8 {[%emt 0:00:00]} 25. Re1 {[%emt 0:01:32]} Rxe1 {[%emt 0:00:00]} 26. Kxe1 {[%emt 0:00:03]} f6 {[%emt 0:00:00]} 27. Bd6 {[%emt 0:01:03]} c4 {[%emt 0:00:00]} 28. b3 {[%emt 0:02:16]} cxb3 {[%emt 0:00:00]} 29. cxb3 {[%emt 0:00:02]} Kf7 {[%emt 0:00:00]} 30. Kf2 {[%emt 0:01:20]} Ke6 {[%emt 0:00:00]} 31. Bb8 {[%emt 0:00:41]} a6 {[%emt 0:00:00]} 32. a4 {[%emt 0:00:23]} Bc6 {[%emt 0:00:00]} 33. a5 {[%emt 0:00:13]} g5 {[%emt 0:00:00]} 34. Bc7 {[%emt 0:01:31]} Kf5 {[%emt 0:00:00]} 35. b4 {[%emt 0:00:41]} Kg6 {[%emt 0:00:00]} 36. Kg3 {[%emt 0:00:47]} h6 {[%emt 0:00:00]} 37. f4 {[%emt 0:01:33]} f5 {[%emt 0:00:00]} 38. h3 {[%emt 0:01:44]} Bb5 {[%emt 0:00:00]} 39. Bd8 {[%emt 0:03:32]} Kh5 {[%emt 0:00:00]} 40. h4 {[%emt 0:00:30]} gxh4+ {[%emt 0:00:00]} 41. Bxh4 {[%emt 0:00:24]} Kg6 {[%emt 0:00:00]} 42. Bd8 {[%emt 0:00:11]} Be2 {[%emt 0:00:00]} 43. Bb6 {[%emt 0:00:43]} Kf7 {[%emt 0:00:00]} 44. Bd4 {[%emt 0:00:10]} Ke6 {[%emt 0:00:00]} 45. Bg7 {[%emt 0:00:25]} h5 {[%emt 0:00:00]} 46. Bd4 {[%emt 0:02:06]} Kd5 {[%emt 0:00:00]} 47. Bc5 {[%emt 0:01:05]} Bd1 {[%emt 0:00:00]} 48. Be7 {[%emt 0:00:27]} Ke4 {[%emt 0:00:00]} 49. Bd6 {[%emt 0:00:22]} Bg4 {[%emt 0:00:00]} 50. Bc7 {[%emt 0:00:12]} Kd5 {[%emt 0:00:00]} 51. Bd8 {[%emt 0:00:36]} Kc6 {[%emt 0:00:00]} 52. Be7 {[%emt 0:00:42]} b6 {[%emt 0:00:00]} 53. axb6 {[%emt 0:00:06]} Kxb6 {[%emt 0:00:00]} 54. Bf8 {[%emt 0:00:13]} Kc6 {[%emt 0:00:00]} 55. Be7 {[%emt 0:00:06]} Kd5 {[%emt 0:00:00]} 56. Bd8 {[%emt 0:00:20]} Ke4 {[%emt 0:00:00]} 57. Be7 {[%emt 0:00:10]} Kd5 {[%emt 0:00:00]} 1/2-1/2

[Event "Lliga Catalana 2024"]
[Site "Catalonia"]
[Date "2024.01.20"]
[Round "1.8"]
[White "Terry Cuellar, Luis Antonio"]
[Black "Nieto Farreny, Francesc"]
[Result "*"]
[ECO "C10"]
[WhiteElo "2094"]
[BlackElo "2170"]
[Annotator "RC"]
[PlyCount "39"]
[EventDate "2024.01.18"]
[EventType "team-tourn"]
[EventCountry "ESP"]
[SourceTitle "playchess.com"]
[Source "ChessBase"]
[SourceQuality "1"]
[TimeControl "5400+30"]

1. e4 {[%emt 0:08:09]} e6 {[%emt 0:00:24]} 2. d4 {[%emt 0:00:47]} d5 {[%emt 0:00:19]} 3. Nc3 {[%emt 0:01:02]} dxe4 {[%emt 0:01:25]} 4. Nxe4 {[%emt 0:00:50]} Bd7 {[%emt 0:00:14]} 5. Nf3 {[%emt 0:03:54]} Bc6 {[%emt 0:00:13]} 6. Bd3 {[%emt 0:01:57]} Nd7 {[%emt 1:30:55]} 7. Bf4 {[%emt 0:05:28]} Ngf6 {[%emt 0:00:30]} 8. Qe2 {[%emt 0:06:40]} Be7 {[%emt 0:00:00]} 9. h3 {[%emt 0:01:42]} O-O {[%emt 0:01:00]} 10. c3 {[%emt 1:05:01]} Nxe4 {[%emt 0:00:00]} 11. Bxe4 {[%emt 0:00:00]} Bxe4 {[%emt 0:00:00]} 12. Qxe4 {[%emt 0:00:00]} c6 {[%emt 0:00:00]} 13. O-O {[%emt 0:01:30]} Nf6 {[%emt 0:00:00]} 14. Qc2 {[%emt 0:00:30]} Nd5 {[%emt 0:02:30]} 15. Be5 {[%emt 0:00:00]} f6 {[%emt 0:00:00]} 16. Bh2 {[%emt 0:00:00]} Bd6 {[%emt 0:00:00]} 17. Rfe1 {[%emt 0:01:30]} Bxh2+ {[%emt 0:00:00]} 18. Kxh2 {[%emt 0:00:00]} Qd6+ {[%emt 0:00:00]} 19. Kg1 {[%emt 0:00:00]} Rfe8 {[%emt 0:00:00]} 20. Re4 {[%emt 0:01:30]} *

[Event "Lliga Catalana 2024"]
[Site "Catalonia"]
[Date "2024.01.20"]
[Round "1.9"]
[White "Mompel Ferruz, Xavier"]
[Black "Bosque Ortega, Xavier"]
[Result "1-0"]
[ECO "B15"]
[WhiteElo "2148"]
[BlackElo "2187"]
[Annotator "RC"]
[PlyCount "61"]
[EventDate "2024.01.18"]
[EventType "team-tourn"]
[EventCountry "ESP"]
[SourceTitle "playchess.com"]
[Source "ChessBase"]
[SourceQuality "1"]
[TimeControl "5400+30"]

1. e4 {[%emt 0:00:03]} c6 {[%emt 0:02:52]} 2. d4 {[%emt 0:00:03]} d5 {[%emt 0:00:14]} 3. Nc3 {[%emt 0:00:04]} g6 {[%emt 0:00:13]} 4. e5 {[%emt 0:00:14]} h5 {[%emt 0:00:17]} 5. Bd3 {[%emt 0:00:28]} Nh6 {[%emt 0:00:31]} 6. Nf3 {[%emt 0:00:42]} Bg4 {[%emt 0:00:23]} 7. h3 {[%emt 0:00:08]} Bxf3 {[%emt 0:00:11]} 8. Qxf3 {[%emt 0:00:04]} e6 {[%emt 0:00:18]} 9. g4 {[%emt 0:02:34]} h4 {[%emt 0:08:22]} 10. Ne2 {[%emt 0:00:14]} g5 {[%emt 0:31:08]} 11. Qe3 {[%emt 0:04:09]} Rg8 {[%emt 0:11:32]} 12. f4 {[%emt 0:00:46]} Be7 {[%emt 0:04:00]} 13. f5 {[%emt 0:02:53]} Nd7 {[%emt 0:08:40]} 14. f6 {[%emt 0:00:13]} Bxf6 {[%emt 0:02:49]} 15. exf6 {[%emt 0:00:07]} Qxf6 {[%emt 0:00:03]} 16. Rf1 {[%emt 0:01:35]} Qe7 {[%emt 0:01:34]} 17. Bd2 {[%emt 0:00:29]} O-O-O {[%emt 0:04:22]} 18. O-O-O {[%emt 0:04:24]} Kb8 {[%emt 0:01:53]} 19. a3 {[%emt 0:02:17]} Rde8 {[%emt 0:03:13]} 20. Ng1 {[%emt 0:03:44]} e5 {[%emt 0:03:38]} 21. dxe5 {[%emt 0:00:19]} Nxe5 {[%emt 0:03:34]} 22. Nf3 {[%emt 0:01:12]} f6 {[%emt 0:00:25]} 23. Nxe5 {[%emt 0:04:13]} fxe5 {[%emt 0:00:20]} 24. Bb4 {[%emt 0:00:07]} Qc7 {[%emt 0:02:12]} 25. Rf6 {[%emt 0:00:38]} Qg7 {[%emt 0:03:06]} 26. Rg6 {[%emt 0:00:06]} Qh8 {[%emt 0:01:56]} 27. Qxg5 {[%emt 0:01:11]} Nf7 {[%emt 0:01:38]} 28. Rxg8 {[%emt 0:00:32]} Rxg8 {[%emt 0:00:13]} 29. Qf5 {[%emt 0:00:06]} Qh6+ {[%emt 0:03:54]} 30. Kb1 {[%emt 0:00:22]} Ng5 {[%emt 0:00:25]} 31. Qxe5+ {[%emt 0:00:15]} 1-0

[Event "Lliga Catalana 2024"]
[Site "Catalonia"]
[Date "2024.03.09"]
[Round "1.9"]
[White "Cespedes Llaverias, Llibert"]
[Black "Gonzalez Garcia, Marc"]
[Result "0-1"]
[ECO "C06"]
[WhiteElo "2065"]
[BlackElo "2138"]
[Annotator "RC"]
[PlyCount "76"]
[EventDate "2024.01.18"]
[EventType "team-tourn"]
[EventCountry "ESP"]
[SourceTitle "playchess.com"]
[Source "ChessBase"]
[SourceQuality "1"]
[TimeControl "5400+30"]

1. e4 {[%emt 0:10:27]} e6 {[%emt 0:00:20]} 2. d4 {[%emt 0:00:34]} d5 {[%emt 0:00:08]} 3. Nc3 {[%emt 0:00:05]} Nf6 {[%emt 0:00:06]} 4. e5 {[%emt 0:00:04]} Nfd7 {[%emt 0:00:10]} 5. Nce2 {[%emt 0:00:07]} c5 {[%emt 0:00:33]} 6. c3 {[%emt 0:00:10]} cxd4 {[%emt 0:00:53]} 7. cxd4 {[%emt 0:00:15]} f6 {[%emt 0:00:52]} 8. exf6 {[%emt 0:01:39]} Nxf6 {[%emt 0:00:40]} 9. Nf3 {[%emt 0:00:05]} Nc6 {[%emt 0:00:47]} 10. Nc3 {[%emt 0:00:11]} Bd6 {[%emt 0:00:26]} 11. Bd3 {[%emt 0:03:02]} O-O {[%emt 0:01:40]} 12. O-O {[%emt 0:00:07]} Bd7 {[%emt 0:15:23]} 13. Re1 {[%emt 0:02:36]} Qb6 {[%emt 0:04:58]} 14. Bg5 {[%emt 0:28:19]} a6 {[%emt 0:35:23]} 15. a3 {[%emt 0:04:42]} g6 {[%emt 0:03:44]} 16. Na4 {[%emt 0:03:51]} Qc7 {[%emt 0:02:09]} 17. Rc1 {[%emt 0:04:01]} Nh5 {[%emt 0:00:28]} 18. Ne5 {[%emt 0:04:25]} Nf4 {[%emt 0:05:11]} 19. Bf1 {[%emt 0:13:01]} Rae8 {[%emt 0:00:38]} 20. g3 {[%emt 0:06:35]} Nh5 {[%emt 0:00:16]} 21. Bh3 {[%emt 0:02:38]} Bxe5 {[%emt 0:04:58]} 22. Rxe5 {[%emt 0:02:07]} Qd6 {[%emt 0:02:31]} 23. Rxc6 {[%emt 0:04:23]} Bxc6 {[%emt 0:03:53]} 24. Nc5 {[%emt 0:00:48]} Ng7 {[%emt 0:00:18]} 25. Bh6 {[%emt 0:02:15]} Rf6 {[%emt 0:00:33]} 26. f4 {[%emt 0:03:27]} a5 {[%emt 0:00:38]} 27. Qe1 {[%emt 0:02:48]} Nf5 {[%emt 0:03:23]} 28. Bxf5 {[%emt 0:00:16]} Rxf5 {[%emt 0:01:01]} 29. Qxa5 {[%emt 0:00:55]} Rxe5 {[%emt 0:00:17]} 30. fxe5 {[%emt 0:00:07]} Qe7 {[%emt 0:00:40]} 31. Qd2 {[%emt 0:01:05]} Qf7 {[%emt 0:00:26]} 32. Bg5 {[%emt 0:00:50]} Qf3 {[%emt 0:00:26]} 33. Bf6 {[%emt 0:00:30]} Bb5 {[%emt 0:00:18]} 34. Qf2 {[%emt 0:00:32]} Qd1+ {[%emt 0:05:46]} 35. Kg2 {[%emt 0:00:10]} b6 {[%emt 0:00:04]} 36. Nb7 {[%emt 0:00:12]} Rc8 {[%emt 0:00:11]} 37. Qf4 {[%emt 0:00:43]} Rc2+ {[%emt 0:00:50]} 38. Kh3 {[%emt 0:00:05]} Bf1+ {[%emt 0:08:32]} 0-1

[Event "Lliga Catalana 2024"]
[Site "Catalonia"]
[Date "2024.03.09"]
[Round "1.10"]
[White "Cortes Lizano, Jesus"]
[Black "Romeu Viladot, Emili"]
[Result "0-1"]
[ECO "B26"]
[WhiteElo "2182"]
[BlackElo "1934"]
[Annotator "RC"]
[PlyCount "84"]
[EventDate "2024.01.18"]
[EventType "team-tourn"]
[EventCountry "ESP"]
[SourceTitle "playchess.com"]
[Source "ChessBase"]
[SourceQuality "1"]
[TimeControl "5400+30"]

1. e4 {[%emt 1:31:00]} c5 {[%emt 0:00:38]} 2. Nc3 {[%emt 0:00:00]} e6 {[%emt 1:30:52]} 3. g3 {[%emt 0:01:00]} Nc6 {[%emt 0:00:00]} 4. Bg2 {[%emt 0:00:00]} g6 {[%emt 0:00:00]} 5. d3 {[%emt 0:00:00]} Bg7 {[%emt 0:00:00]} 6. Be3 {[%emt 0:00:00]} d6 {[%emt 0:00:00]} 7. Qd2 {[%emt 0:00:00]} Rb8 {[%emt 0:02:30]} 8. Nge2 {[%emt 0:00:00]} Nd4 {[%emt 0:00:00]} 9. Nd1 {[%emt 0:03:00]} b5 {[%emt 0:00:00]} 10. Nc1 {[%emt 0:00:30]} b4 {[%emt 0:00:00]} 11. c3 {[%emt 0:00:30]} bxc3 {[%emt 0:00:00]} 12. bxc3 {[%emt 0:00:00]} Nc6 {[%emt 0:00:00]} 13. O-O {[%emt 0:00:00]} Ba6 {[%emt 0:00:00]} 14. f4 {[%emt 0:01:30]} Nce7 {[%emt 0:03:30]} 15. h3 {[%emt 0:00:30]} h5 {[%emt 0:00:00]} 16. Rf2 {[%emt 0:00:30]} f5 {[%emt 0:00:00]} 17. Nb3 {[%emt 0:00:30]} c4 {[%emt 0:01:30]} 18. Nd4 {[%emt 0:00:30]} Qc8 {[%emt 0:00:30]} 19. dxc4 {[%emt 0:00:30]} fxe4 {[%emt 0:00:30]} 20. Nb5 {[%emt 0:00:30]} Bxb5 {[%emt 0:00:00]} 21. cxb5 {[%emt 0:00:30]} d5 {[%emt 0:00:00]} 22. a4 {[%emt 0:00:00]} a6 {[%emt 0:00:00]} 23. Bd4 {[%emt 0:00:00]} Nf6 {[%emt 0:00:00]} 24. Rb1 {[%emt 0:00:00]} Nc6 {[%emt 0:00:00]} 25. Be5 {[%emt 0:00:00]} Nxe5 {[%emt 0:00:00]} 26. fxe5 {[%emt 0:00:00]} Nd7 {[%emt 0:00:00]} 27. Qg5 {[%emt 0:00:00]} Nxe5 {[%emt 0:00:00]} 28. Kh1 {[%emt 0:00:00]} Qd8 {[%emt 0:00:00]} 29. Qd2 {[%emt 0:00:00]} axb5 {[%emt 0:00:00]} 30. axb5 {[%emt 0:00:00]} Nd3 {[%emt 0:00:00]} 31. Re2 {[%emt 0:00:00]} Bh6 {[%emt 0:00:00]} 32. Qc2 {[%emt 0:00:00]} O-O {[%emt 0:00:00]} 33. c4 {[%emt 0:00:00]} Qd6 {[%emt 0:00:01]} 34. cxd5 {[%emt 0:00:00]} exd5 {[%emt 0:00:21]} 35. Ne3 {[%emt 0:00:00]} Qxg3 {[%emt 0:04:27]} 36. Nxd5 {[%emt 0:00:00]} Nf2+ {[%emt 0:00:11]} 37. Rxf2 {[%emt 0:00:00]} Rxf2 {[%emt 0:00:49]} 38. Qxe4 {[%emt 0:00:00]} Rf7 {[%emt 0:01:21]} 39. Rg1 {[%emt 0:00:00]} Rbf8 {[%emt 0:01:22]} 40. b6 {[%emt 0:00:00]} Bg7 {[%emt 0:00:34]} 41. Re1 {[%emt 0:00:00]} Rf2 {[%emt 0:00:54]} 42. Re3 {[%emt 0:00:00]} Rf1+ {[%emt 0:00:13]} 0-1

[Event "Lliga Catalana 2024"]
[Site "Catalonia"]
[Date "2024.01.20"]
[Round "1.10"]
[White "Ramirez Carrizo, Victor Jose"]
[Black "Serrano Batova, Vicent"]
[Result "1/2-1/2"]
[ECO "B38"]
[WhiteElo "2182"]
[BlackElo "2134"]
[Annotator "RC"]
[PlyCount "106"]
[EventDate "2024.01.18"]
[EventType "team-tourn"]
[EventCountry "ESP"]
[SourceTitle "playchess.com"]
[Source "ChessBase"]
[SourceQuality "1"]
[TimeControl "5400+30"]

1. e4 {[%emt 0:00:06]} c5 {[%emt 0:00:08]} 2. Nf3 {[%emt 0:00:52]} Nc6 {[%emt 0:00:08]} 3. d4 {[%emt 0:00:13]} cxd4 {[%emt 0:00:03]} 4. Nxd4 {[%emt 0:00:09]} g6 {[%emt 0:00:02]} 5. c4 {[%emt 0:00:36]} Nf6 {[%emt 0:00:02]} 6. Nc3 {[%emt 0:00:44]} d6 {[%emt 0:00:02]} 7. f3 {[%emt 0:00:58]} Bg7 {[%emt 0:00:26]} 8. Be3 {[%emt 0:00:11]} O-O {[%emt 0:00:37]} 9. Be2 {[%emt 0:03:47]} Nh5 {[%emt 0:01:46]} 10. Nc2 {[%emt 0:20:10]} Qa5 {[%emt 0:04:48]} 11. Qd2 {[%emt 0:07:14]} Be6 {[%emt 0:10:11]} 12. g4 {[%emt 0:09:37]} Nf6 {[%emt 0:13:31]} 13. Nd5 {[%emt 0:04:45]} Qxd2+ {[%emt 0:01:48]} 14. Kxd2 {[%emt 0:01:44]} Rfc8 {[%emt 0:01:18]} 15. Rab1 {[%emt 0:06:39]} Nd7 {[%emt 0:08:05]} 16. Bg5 {[%emt 0:15:37]} Kf8 {[%emt 0:00:01]} 17. b3 {[%emt 0:04:48]} a5 {[%emt 0:01:23]} 18. Rhc1 {[%emt 0:06:34]} Bxd5 {[%emt 0:30:02]} 19. cxd5 {[%emt 0:04:03]} Nb4 {[%emt 0:01:34]} 20. Nxb4 {[%emt 0:01:48]} Rxc1 {[%emt 0:00:08]} 21. Rxc1 {[%emt 0:00:33]} axb4 {[%emt 0:00:02]} 22. Rc2 {[%emt 0:00:27]} Nc5 {[%emt 0:01:17]} 23. Bc4 {[%emt 0:03:58]} h6 {[%emt 0:02:14]} 24. Be3 {[%emt 0:00:16]} g5 {[%emt 0:00:51]} 25. Ke2 {[%emt 0:00:28]} Bc3 {[%emt 0:00:48]} 26. Bd2 {[%emt 0:00:10]} Bxd2 {[%emt 0:00:21]} 27. Kxd2 {[%emt 0:00:05]} Kg7 {[%emt 0:00:13]} 28. Ke3 {[%emt 0:03:14]} Kf6 {[%emt 0:06:31]} 29. Kd4 {[%emt 0:00:33]} Rc8 {[%emt 0:00:01]} 30. Bd3 {[%emt 0:01:37]} b6 {[%emt 0:01:33]} 31. Rc4 {[%emt 0:01:00]} Ra8 {[%emt 0:03:11]} 32. Bb1 {[%emt 0:00:10]} Ra5 {[%emt 0:01:52]} 33. Rxb4 {[%emt 0:01:02]} b5 {[%emt 0:00:00]} 34. e5+ {[%emt 0:00:47]} Kg7 {[%emt 0:00:01]} 35. h3 {[%emt 0:01:26]} Na6 {[%emt 0:00:29]} 36. Kc3 {[%emt 0:00:25]} dxe5 {[%emt 0:01:36]} 37. Re4 {[%emt 0:00:40]} Kf6 {[%emt 0:00:48]} 38. a4 {[%emt 0:01:21]} bxa4 {[%emt 0:00:53]} 39. Rxa4 {[%emt 0:00:22]} Rc5+ {[%emt 0:00:18]} 40. Kb2 {[%emt 0:00:19]} Nc7 {[%emt 0:00:20]} 41. Rc4 {[%emt 0:00:23]} Rxc4 {[%emt 0:04:21]} 42. bxc4 {[%emt 0:00:05]} e4 {[%emt 0:01:38]} 43. Bxe4 {[%emt 0:00:24]} Na6 {[%emt 0:01:51]} 44. Kb3 {[%emt 0:01:08]} Ke5 {[%emt 0:00:05]} 45. Ka4 {[%emt 0:00:32]} Kd6 {[%emt 0:00:40]} 46. Kb5 {[%emt 0:00:30]} Nc5 {[%emt 0:00:01]} 47. Bc2 {[%emt 0:00:29]} e6 {[%emt 0:02:31]} 48. Be4 {[%emt 0:00:30]} Nd7 {[%emt 0:01:08]} 49. dxe6 {[%emt 0:00:41]} fxe6 {[%emt 0:00:03]} 50. Bc2 {[%emt 0:00:25]} Nc5 {[%emt 0:00:04]} 51. Bb1 {[%emt 0:00:24]} Nd7 {[%emt 0:00:28]} 52. Be4 {[%emt 0:00:32]} Nc5 {[%emt 0:00:15]} 53. Bc2 {[%emt 0:00:26]} Nd7 {[%emt 0:00:06]} 1/2-1/2

[Event "Lliga Catalana 2024"]
[Site "Catalonia"]
[Date "2024.01.20"]
[Round "1.10"]
[White "Barrera Clot, Carlos"]
[Black "Hapala, Elisabeth"]
[Result "0-1"]
[ECO "D03"]
[WhiteElo "2104"]
[BlackElo "2001"]
[Annotator "NA RC"]
[PlyCount "66"]
[EventDate "2024.01.18"]
[EventType "team-tourn"]
[EventCountry "ESP"]
[SourceTitle "playchess.com"]
[Source "ChessBase"]
[SourceQuality "1"]
[TimeControl "5400+30"]

1. d4 {[%emt 0:00:08]} Nf6 {[%emt 0:00:05]} 2. Nf3 {[%emt 0:00:08]} e6 {[%emt 0:00:17]} 3. Bg5 {[%emt 0:00:17]} c5 {[%emt 0:02:13]} 4. c3 {[%emt 0:00:26]} h6 {[%emt 0:04:51]} 5. Bxf6 {[%emt 0:05:25]} Qxf6 {[%emt 0:00:07]} 6. Nbd2 {[%emt 0:01:13]} d5 {[%emt 0:04:39]} 7. e3 {[%emt 0:01:35]} Nc6 {[%emt 0:01:10]} 8. Bb5 {[%emt 0:03:19]} Bd6 {[%emt 0:04:18]} 9. O-O {[%emt 0:16:15]} O-O {[%emt 0:01:13]} 10. Re1 {[%emt 0:05:44]} cxd4 {[%emt 0:10:34]} 11. exd4 {[%emt 0:02:41]} a6 {[%emt 0:09:25]} 12. Bxc6 {[%emt 0:08:50]} bxc6 {[%emt 0:00:04]} 13. b4 {[%emt 0:00:11]} Qd8 {[%emt 0:04:53]} 14. Ne5 {[%emt 0:05:15]} Qc7 {[%emt 0:09:02]} 15. Ndf3 {[%emt 0:07:41]} f6 {[%emt 0:03:29]} 16. Nd3 {[%emt 0:06:26]} Ra7 {[%emt 0:03:23]} 17. h3 {[%emt 0:02:08]} Qf7 {[%emt 0:06:14]} 18. Qd2 {[%emt 0:04:53]} Re7 {[%emt 0:01:32]} 19. Nc5 {[%emt 0:01:19]} e5 {[%emt 0:01:38]} 20. Nh2 {[%emt 0:10:17]} e4 {[%emt 0:05:02]} 21. Qe2 {[%emt 0:06:42]} f5 {[%emt 0:02:44]} 22. Nf1 {[%emt 0:06:33]} f4 {[%emt 0:02:04]} 23. f3 {[%emt 0:01:24]} Rfe8 {[%emt 0:05:38]} 24. Qf2 {[%emt 0:02:52]} Qg6 {[%emt 0:01:00]} 25. Kh1 {[%emt 0:00:29]} exf3 {[%emt 0:02:55]} 26. Rxe7 {[%emt 0:00:42]} fxg2+ {[%emt 0:00:07]} 27. Qxg2 {[%emt 0:00:05]} Qxg2+ {[%emt 0:00:04]} 28. Kxg2 {[%emt 0:00:11]} Rxe7 {[%emt 0:00:04]} 29. Kf3 {[%emt 0:00:31]} Bxh3 {[%emt 0:03:48]} 30. Nxa6 {[%emt 0:00:19]} g5 {[%emt 0:00:50]} 31. a4 {[%emt 0:01:26]} g4+ {[%emt 0:00:17]} 32. Kf2 {[%emt 0:00:01]} g3+ {[%emt 0:00:16]} 33. Kf3 {[%emt 0:00:56]} h5 {[%emt 0:01:30]} 0-1

[Event "Lliga Catalana 2024"]
[Site "Catalonia"]
[Date "2024.01.27"]
[Round "2.1"]
[White "Predke, Alexandr"]
[Black "Ayats Llobera, Gerard"]
[Result "1-0"]
[ECO "C17"]
[WhiteElo "2668"]
[BlackElo "2426"]
[Annotator "RC"]
[PlyCount "135"]
[EventDate "2024.01.18"]
[EventType "team-tourn"]
[EventCountry "ESP"]
[SourceTitle "playchess.com"]
[Source "ChessBase"]
[SourceQuality "1"]
[TimeControl "5400+30"]

1. e4 {[%emt 0:00:03]} e6 {[%emt 0:06:38]} 2. d4 {[%emt 0:01:32]} d5 {[%emt 0:00:18]} 3. Nc3 {[%emt 0:00:19]} Bb4 {[%emt 0:04:21]} 4. e5 {[%emt 0:00:18]} c5 {[%emt 0:00:05]} 5. Bd2 {[%emt 0:07:46]} cxd4 {[%emt 0:10:21]} 6. Nb5 {[%emt 0:00:05]} Bxd2+ {[%emt 0:00:43]} 7. Qxd2 {[%emt 0:00:05]} Nc6 {[%emt 0:00:53]} 8. f4 {[%emt 0:03:33]} Nge7 {[%emt 0:02:18]} 9. Nd6+ {[%emt 0:02:09]} Kf8 {[%emt 0:00:05]} 10. Bd3 {[%emt 0:01:37]} Qb6 {[%emt 0:16:31]} 11. Nf3 {[%emt 0:01:26]} Qxb2 {[%emt 0:03:57]} 12. O-O {[%emt 0:00:10]} Qc3 {[%emt 0:08:28]} 13. Qe2 {[%emt 0:04:29]} Nf5 {[%emt 0:05:35]} 14. Ng5 {[%emt 0:14:54]} Nxd6 {[%emt 0:06:25]} 15. exd6 {[%emt 0:00:31]} g6 {[%emt 0:01:59]} 16. f5 {[%emt 0:08:38]} exf5 {[%emt 0:01:55]} 17. g4 {[%emt 0:00:13]} h6 {[%emt 0:09:21]} 18. Nxf7 {[%emt 0:06:39]} Kxf7 {[%emt 0:00:37]} 19. gxf5 {[%emt 0:00:05]} Bxf5 {[%emt 0:02:17]} 20. Bxf5 {[%emt 0:04:15]} Qe3+ {[%emt 0:00:26]} 21. Qxe3 {[%emt 0:00:04]} dxe3 {[%emt 0:00:03]} 22. Bc8+ {[%emt 0:00:06]} Kg7 {[%emt 0:00:05]} 23. Bxb7 {[%emt 0:00:05]} e2 {[%emt 0:00:14]} 24. Rfc1 {[%emt 0:07:09]} Nd4 {[%emt 0:02:26]} 25. Bxa8 {[%emt 0:00:08]} Nf3+ {[%emt 0:12:45]} 26. Kf2 {[%emt 0:02:35]} e1=Q+ {[%emt 0:00:05]} 27. Rxe1 {[%emt 0:00:05]} Nxe1 {[%emt 0:00:03]} 28. Bxd5 {[%emt 0:04:09]} Nxc2 {[%emt 0:00:15]} 29. Rc1 {[%emt 0:00:03]} Nb4 {[%emt 0:01:10]} 30. Rc7+ {[%emt 0:10:35]} Kf6 {[%emt 0:00:08]} 31. Bc4 {[%emt 0:00:02]} Rd8 {[%emt 0:01:34]} 32. d7 {[%emt 0:01:53]} a5 {[%emt 0:02:25]} 33. a3 {[%emt 0:05:26]} Nc2 {[%emt 0:00:07]} 34. Bd3 {[%emt 0:03:59]} Nd4 {[%emt 0:00:06]} 35. Ra7 {[%emt 0:00:06]} Ne6 {[%emt 0:02:14]} 36. Bb5 {[%emt 0:00:41]} Nc5 {[%emt 0:00:43]} 37. Ke3 {[%emt 0:01:18]} Ke6 {[%emt 0:00:09]} 38. Rxa5 {[%emt 0:00:18]} Nxd7 {[%emt 0:00:44]} 39. Ra6+ {[%emt 0:00:01]} Ke5 {[%emt 0:00:19]} 40. Rxg6 {[%emt 0:01:25]} Nf6 {[%emt 0:00:06]} 41. a4 {[%emt 0:01:48]} Rd1 {[%emt 0:00:51]} 42. Rxh6 {[%emt 0:00:42]} Ra1 {[%emt 0:00:37]} 43. Kd3 {[%emt 0:00:28]} Nd5 {[%emt 0:00:38]} 44. Rh5+ {[%emt 0:01:12]} Kd6 {[%emt 0:00:02]} 45. Rh8 {[%emt 0:00:04]} Nb6 {[%emt 0:01:02]} 46. Rh6+ {[%emt 0:00:04]} Kc7 {[%emt 0:00:03]} 47. Rh4 {[%emt 0:00:23]} Ra3+ {[%emt 0:00:20]} 48. Kc2 {[%emt 0:00:10]} Nd5 {[%emt 0:01:01]} 49. Kb2 {[%emt 0:02:26]} Re3 {[%emt 0:00:31]} 50. Rh6 {[%emt 0:00:20]} Nb4 {[%emt 0:00:43]} 51. h4 {[%emt 0:00:32]} Rg3 {[%emt 0:00:44]} 52. a5 {[%emt 0:00:27]} Kb7 {[%emt 0:00:32]} 53. Rh7+ {[%emt 0:00:25]} Kb8 {[%emt 0:00:06]} 54. Rh8+ {[%emt 0:04:28]} Ka7 {[%emt 0:00:17]} 55. Rh6 {[%emt 0:00:13]} Re3 {[%emt 0:00:20]} 56. Bc4 {[%emt 0:00:29]} Rh3 {[%emt 0:00:50]} 57. h5 {[%emt 0:00:27]} Nd3+ {[%emt 0:00:53]} 58. Kc2 {[%emt 0:00:09]} Nb4+ {[%emt 0:00:23]} 59. Kd2 {[%emt 0:00:09]} Ra3 {[%emt 0:00:16]} 60. a6 {[%emt 0:00:05]} Rh3 {[%emt 0:00:33]} 61. Rh7+ {[%emt 0:00:32]} Ka8 {[%emt 0:00:08]} 62. h6 {[%emt 0:00:51]} Rh5 {[%emt 0:00:43]} 63. Be2 {[%emt 0:04:00]} Rh3 {[%emt 0:00:21]} 64. Rf7 {[%emt 0:01:15]} Rxh6 {[%emt 0:00:39]} 65. Bf3+ {[%emt 0:00:01]} Nc6 {[%emt 0:01:01]} 66. Rc7 {[%emt 0:00:02]} Kb8 {[%emt 0:00:29]} 67. Rxc6 {[%emt 0:00:08]} Rh2+ {[%emt 0:00:15]} 68. Be2 {[%emt 0:00:10]} 1-0